Cogmind - Beta 14 *** ADVENTURER MODE // 2024.08.11 @ 01:56:56 Player: Plaidstone Result: Self-destructed Performance ------------- Evolutions (1) 500 Regions Visited (3) 600 Robots Destroyed (34) 170 Value Destroyed (929) 929 Prototype IDs (3) 60 Alien Tech Used (0) 0 Bonus (0) 0 TOTAL SCORE: 2259 Bonus ------- None Cogmind --------- Core Integrity 388/400 Matter 300/300 Energy 125/125 System Corruption 0% Temperature Cool (9) Movement Flying (37) Location -9/Materials Parts ------- > --- POWER (1) -------- Light Ion Engine > --- PROPULSION (3) --- Flight Unit Flight Unit > --- UTILITY (3) ------ Small Storage Unit Weight Redist. System > --- WEAPON (2) ------- Rocket Launcher > --- INVENTORY (8) ---- Structural Scanner Terrain Scanner ECM Suite Datajack Mining Laser Peak State ------------ > --- POWER ------------ Light Ion Engine > --- PROPULSION ------- Flight Unit Flight Unit > --- UTILITY ---------- Small Storage Unit Weight Redist. System > --- WEAPON ----------- Rocket Launcher > --- INVENTORY -------- Light Ion Engine Flight Unit Structural Scanner Terrain Scanner ECM Suite Datajack Mining Laser [Rating: 8] Favorites ----------- Power Light Ion Engine Engine Light Ion Engine Propulsion Flight Unit Leg Aluminum Leg Wheel Wheel Hover Unit Hover Unit Flight Unit Flight Unit Utility Small Storage Unit Device Sensor Array Storage Small Storage Unit Weapon Small Laser Energy Gun Small Laser Ballistic Gun Assault Rifle Launcher Rocket Launcher Build | -11 -10 -10 -9 ------- Run | Yrd Mat Min Mat Slots Evolved 2 | . . . 2 Power . | . . . . Propulsion 1 | . . . 1 Utility 1 | . . . 1 Weapon . | . . . . Parts Attached 39 | 6 22 11 . Power 7 | 1 5 1 . Engine 7 | 1 5 1 . Core . | . . . . Reactor . | . . . . Propulsion 18 | 4 7 7 . Treads . | . . . . Leg 4 | 2 2 . . Wheel 4 | 2 2 . . Hover 2 | . 2 . . Flight 8 | . 1 7 . Utility 6 | 1 4 1 . Device 4 | . 3 1 . Storage 2 | 1 1 . . Processor . | . . . . Hackware . | . . . . Protection . | . . . . Artifact . | . . . . Weapon 8 | . 6 2 . Energy Gun 5 | . 4 1 . Energy Cannon . | . . . . Ballistic Gun 2 | . 2 . . Ballistic Cannon . | . . . . Launcher 1 | . . 1 . Special Weapon . | . . . . Impact Weapon . | . . . . Slashing Weapon . | . . . . Piercing Weapon . | . . . . Special Melee Weapon . | . . . . Unidentified Prototypes . | . . . . Parts Lost 7 | . 4 3 . Power 1 | . . 1 . Propulsion 4 | . 3 1 . Utility . | . . . . Weapon 2 | . 1 1 . Highest Loss Streak 2 | . 2 2 . To Critical Strikes . | . . . . Average Slot Usage (%) 93 | . 92 94 66 Engine 13 | . 13 12 11 Leg 4 | . 7 . . Wheel 4 | . 3 5 . Hover 6 | . 9 . . Flight 9 | . 2 21 22 Device 13 | . 13 14 11 Storage 13 | . 14 14 11 Energy Gun 17 | . 16 20 . Ballistic Gun 7 | . 11 . . Launcher 1 | . . 3 11 Peak Build Rating 8 | 4 7 8 8 Average Rating 6 | 3 6 7 8 On Entrance 4 | . 4 7 8 Naked Turns . | . . . . Heaviest Build 15 | 8 15 12 12 Greatest Support 20 | 20 20 20 14 Greatest Overweight (x) 3 | . 3 2 . Average Overweight (x) . | . . . . Largest Inventory Capacity 8 | 8 8 8 8 Average Capacity 7 | 7 8 8 8 Most Carried 8 | 6 8 8 5 Average Carried 6 | 3 6 7 5 Final Capacity 8 | 8 8 8 8 Final Carried 8 | 4 8 5 5 Class Distribution -------------------- 54% | Mutant 45% | Scavenger-Mutant Dominant Class ---------------- Mutant | -10/Materials Scavenger-Mutant | -10/Mines Mutant | -9/Materials Resources | -11 -10 -10 -9 ----------- Run | Yrd Mat Min Mat Matter Collected 949 | 244 500 164 41 Remotely . | . . . . Salvage Created 1096 | . 940 156 . Parts 61 | . 56 5 . Haulers Intercepted 2 | . 2 . . Recyclers Shooed . | . . . . Parts Field Recycled . | . . . . Retrieved Matter . | . . . . Parts Self-Destructed . | . . . . Prevented . | . . . . Kills | -11 -10 -10 -9 ------- Run | Yrd Mat Min Mat Combat Hostiles Destroyed 29 | . 22 7 . Guns 27 | . 22 5 . AOE 2 | . . 2 . Classes Destroyed 5 | . 5 . . Worker 2 | . 2 . . Hauler 2 | . 2 . . Watcher 1 | . 1 . . Swarmer 6 | . 3 3 . Grunt 23 | . 19 4 . Best Kill Streak 5 | . 5 3 . Combat Bots Only 5 | . 5 3 . Max Kills in Single Turn 2 | . 2 1 . Gunslinging . | . . . . Exploded 1 | . . 1 . Melee . | . . . . Uniques/NPCs Destroyed . | . . . . Combat | -11 -10 -10 -9 -------- Run | Yrd Mat Min Mat Hostile Shots Fired 124 | . 96 26 2 Missed 28 | . 20 8 . Damage Taken 935 | . 645 265 25 Core 238 | . 143 83 12 Absorbed by Shields . | . . . . Ignored by Resistances 286 | . 199 80 7 Regen/Repaired (Parts) 3 | . 3 . . Core Remaining (%) 54 | 100 . 9 . Volleys Fired 88 | . 69 19 . Largest 2 | . 2 2 . Hottest 80 | . 80 80 . Shots Fired 162 | . 138 24 . Gun 154 | . 138 16 . Cannon . | . . . . Launcher 8 | . . 8 . Special . | . . . . Kinetic 75 | . 75 . . Thermal 79 | . 63 16 . Explosive 8 | . . 8 . Electromagnetic . | . . . . Robot Hit Streak 48 | . 48 14 . Robot Miss Streak 3 | . 3 1 . Penetration Max . | . . . . Secondary Targets 2 | . 2 . . Max Gunslinging Chain 1 | . 1 . . Shots Hit Robots 134 | . 115 19 . Core Hits 63 | . 51 12 . Critical Kills . | . . . . Critical Parts Destroyed . | . . . . Critical Strikes . | . . . . Melee Attacks . | . . . . Impact . | . . . . Slashing . | . . . . Piercing . | . . . . Sneak Attacks . | . . . . Combat Hostiles . | . . . . Follow-up Attacks . | . . . . Damage Inflicted 1918 | . 1390 528 . Guns 1537 | . 1390 147 . Cannons . | . . . . Explosions 381 | . . 381 . Melee . | . . . . Ramming . | . . . . Kinetic 832 | . 832 . . Thermal 705 | . 558 147 . Explosive 381 | . . 381 . Electromagnetic . | . . . . Impact . | . . . . Slashing . | . . . . Piercing . | . . . . Highest Corruption 2 | . 2 2 . Average Corruption 1 | . 1 2 . Corruption Purged . | . . . . Corruption Blocked . | . . . . Effects 37 | . 22 15 . Message Errors 8 | . 5 3 . Matter Fused 10 | . 7 3 . Heat Flow Errors 2 | . 1 1 . Energy Discharges 5 | . 3 2 . Data Loss (minor) 6 | . 2 4 . Data Loss (major) 4 | . 3 1 . Misfires 1 | . 1 . . Alerts 1 | . . 1 . Overload Shots . | . . . . Overflow Damage 2 | . . 2 . Projectiles . | . . . . Explosions 2 | . . 2 . Melee . | . . . . Knockbacks . | . . . . Impact . | . . . . Kinetic . | . . . . Secondary . | . . . . Self-Inflicted Damage 98 | . . 98 . Shots 8 | . . 8 . Rammed . | . . . . Targets Rammed . | . . . . Kicked . | . . . . Crushed . | . . . . Highest Temperature 282 | . 282 147 . Average Temperature 75 | . 85 47 . Received Heat Transfer 582 | . 426 147 9 Siege Activations . | . . . . Robots Corrupted . | . . . . Combat Hostiles . | . . . . Parts Fried . | . . . . Impact Corruptions . | . . . . Robots Melted . | . . . . Combat Hostiles . | . . . . Parts Melted 2 | . 2 . . Heat Transferred 1600 | . 1275 325 . Parts Sabotaged . | . . . . Parts Stolen . | . . . . Parts Stripped . | . . . . Power Chain Reactions . | . . . . Alert | -11 -10 -10 -9 ------- Run | Yrd Mat Min Mat Peak Influence 318 | . 318 93 24 Initial 24 | . . 23 24 Average 67 | . 85 37 24 Maximum Alert Level 1 | . 1 . . Low Security (%) 92 | 100 88 100 100 Level 1 7 | . 11 . . Level 2 . | . . . . Level 3 . | . . . . Level 4 . | . . . . Level 5 . | . . . . High Security . | . . . . Max Security . | . . . . Squads Dispatched 8 | . 8 . . Investigation 8 | . 8 . . Extermination . | . . . . Reinforcement . | . . . . Assault . | . . . . Garrison . | . . . . Intercept . | . . . . Searches Triggered . | . . . . Construction Impeded . | . . . . Haulers Reinforced . | . . . . Active Scanning Responses . | . . . . Cargo Convoy Interrupts . | . . . . Stealth | -11 -10 -10 -9 --------- Run | Yrd Mat Min Mat Distress Signals . | . . . . Communications Jammed . | . . . . Distress Signals . | . . . . Times Spotted 37 | . 27 9 1 Peak Tracking Total 5 | . 5 3 1 Tactical Retreats 3 | . 2 1 . Traps | -11 -10 -10 -9 ------- Run | Yrd Mat Min Mat Traps Triggered 3 | . 3 . . Indirectly . | . . . . Trap Hack Attempts . | . . . . Triggered . | . . . . Disarmed . | . . . . Reprogrammed . | . . . . Reused . | . . . . Traps Extracted . | . . . . Installed . | . . . . Triggered . | . . . . Machines | -11 -10 -10 -9 ---------- Run | Yrd Mat Min Mat Machines Disabled . | . . . . Max in Single Turn . | . . . . Machines Repaired . | . . . . Machines Dismantled . | . . . . Machines Sabotaged . | . . . . Overloaded Fab Kills . | . . . . Hacking | -11 -10 -10 -9 --------- Run | Yrd Mat Min Mat Machines Accessed 11 | . 11 . . Terminals 8 | . 8 . . Fabricators . | . . . . Repair Stations 1 | . 1 . . Recycling Units 2 | . 2 . . Scanalyzers . | . . . . Garrison Access . | . . . . Total Hacks 47 | . 47 . . Successful 33 | . 33 . . Failed 14 | . 14 . . Catastrophic 1 | . 1 . . Database Lockouts . | . . . . Manual 25 | . 25 . . Terminals 35 | . 35 . . Fabricators . | . . . . Repair Stations 3 | . 3 . . Recycling Units 9 | . 9 . . Scanalyzers . | . . . . Garrison Access . | . . . . Terminal Hacks 13 | . 13 . . Prototype ID Bank 2 | . 2 . . Branch Access Points 1 | . 1 . . Unreport Threat 1 | . 1 . . Locate Traps 1 | . 1 . . Investigation Status 1 | . 1 . . Recall Investigation 1 | . 1 . . Hauler Manifests 2 | . 2 . . Registered Components 1 | . 1 . . Registered Prototypes 1 | . 1 . . Zone Layout 2 | . 2 . . Fabricator Hacks . | . . . . Repair Station Hacks 2 | . 2 . . Scan Component 1 | . 1 . . Repair 1 | . 1 . . Recycling Unit Hacks 3 | . 3 . . Report Inventory 2 | . 2 . . Retrieve Matter 1 | . 1 . . Scanalyzer . | . . . . Garrison Access Hacks . | . . . . Unauthorized Hacks 15 | . 15 . . Terminals 9 | . 9 . . Botnet 7 | . 7 . . Operators 1 | . 1 . . Skim 1 | . 1 . . Fabricators . | . . . . Repair Stations . | . . . . Recycling Units 6 | . 6 . . Monitor 1 | . 1 . . Reject 1 | . 1 . . Recyclers 1 | . 1 . . Mask 1 | . 1 . . Tunnel 2 | . 2 . . Scanalyzers . | . . . . Garrison Access . | . . . . Data Cores Recovered . | . . . . Used . | . . . . Hacking Detections 10 | . 10 . . Full Trace Events 9 | . 9 . . Feedback Events 2 | . 2 . . Corruption 2 | . 2 . . Feedback Blocked . | . . . . Robot Schematics Acquired . | . . . . Robots Built . | . . . . Authchips . | . . . . Time . | . . . . Total Robot Build Rating . | . . . . Part Schematics Acquired . | . . . . Parts Built . | . . . . Authchips . | . . . . Time . | . . . . Total Part Build Rating . | . . . . Parts Repaired 1 | . 1 . . Time 32 | . 32 . . Parts Recycled . | . . . . Recycled Matter . | . . . . Retrieved Matter . | . . . . Retrieved Components . | . . . . Parts Scanalyzed . | . . . . Part Schematics Acquired . | . . . . Parts Damaged . | . . . . Bothacking | -11 -10 -10 -9 ------------ Run | Yrd Mat Min Mat Used RIF Installer . | . . . . Robots Hacked . | . . . . Non-combat . | . . . . Combat . | . . . . Robot Hacks Applied . | . . . . Relay Couplers Released . | . . . . Fabnet Peak Effective % . | . . . . Robots Rewired . | . . . . Allies Hacked . | . . . . Hacks Repelled . | . . . . Allies | -11 -10 -10 -9 -------- Run | Yrd Mat Min Mat Total Allies . | . . . . Largest Group . | . . . . Highest-Rated Group . | . . . . Highest-Rated Ally . | . . . . Total Orders . | . . . . Ally Attacks . | . . . . Total Damage . | . . . . Kills . | . . . . Allies Corrupted . | . . . . Allies Melted . | . . . . Intel | -11 -10 -10 -9 ------- Run | Yrd Mat Min Mat Robot Analysis Total . | . . . . Derelict Logs Recovered 1 | . . 1 . Drone Launches . | . . . . Drone Recoveries . | . . . . Exploration | -11 -10 -10 -9 ------------- Run | Yrd Mat Min Mat Turns Passed 3421 | 60 2213 1133 15 Spaces Moved 2408 | 49 1133 1188 38 Core 18 | 16 2 . . Treads . | . . . . Legs 352 | 20 332 . . Wheels 436 | 13 186 237 . Hover 613 | . 613 . . Flight 989 | . . 951 38 Fastest Speed 37 | 50 80 37 37 Average Speed 104 | 86 135 77 37 Slowest Speed 200 | 120 200 200 37 Overloaded Moves . | . . . . Propulsion Burnouts . | . . . . Robots Hopped 1 | . . 1 . Cave-ins Triggered . | . . . . Exploration Rate (%) 50 | 3 95 99 5 Regions Visited 3 Branch Regions 1 Pre-discovered Areas 3 | . 2 1 . Known Exits Taken 1 | . 1 . . Unknown Exits Taken 2 | 1 . 1 . Scrap Searched 1 | . . 1 . Spaces Dug 9 | . . 9 . Terrain Destroyed 59 | . . 59 . Melee . | . . . . Projectile . | . . . . AOE 59 | . . 59 . Terrain Rammed . | . . . . Walls Destroyed . | . . . . Machines Disabled . | . . . . Actions | -11 -10 -10 -9 --------- Run | Yrd Mat Min Mat Total 3160 | 66 1677 1379 38 Wait 577 | . 420 157 . Move 2403 | 48 1132 1185 38 Hop 1 | . . 1 . Pick Up 28 | 10 18 . . Fast Attach 10 | . 6 4 . Attach 15 | 4 8 3 . Detach . | . . . . Swap 14 | 2 8 4 . Drop 24 | 2 16 6 . Fire 88 | . 69 19 . Melee . | . . . . Ram . | . . . . Kick . | . . . . Crush . | . . . . Escape Stasis . | . . . . Rewire . | . . . . Trap . | . . . . Miscellaneous . | . . . . Route ------- -11/Scrapyard -10/Materials (discovered 4 exits: [*Mat x3] / *Min) -10/Mines (discovered 2 exits: [*Mat x2]) -9/Materials (discovered 1 exit: Mat) History --------- Turn | Location | Event 2 | -11/Scrapyard | Discovered new exit (range 16) 61 | -11/Scrapyard | Entered Materials 80 | -10/Materials | Identified exit to Mines 328 | -10/Materials | Build established: Mutant 637 | -10/Materials | Repaired Weight Redist. System 973 | -10/Materials | Discovered new exit (range 16) 1655 | -10/Materials | Core integrity fell below 50% 1818 | -10/Materials | Discovered new exit (range 5) 1895 | -10/Materials | Discovered new exit (range 6) 1969 | -10/Materials | Build established: Scavenger-Mutant 2274 | -10/Materials | Entered Mines 2290 | -10/Mines | Found DCF Scrap (11 items) 2314 | -10/Mines | Learned location of 1 exit from Materials 2806 | -10/Mines | Joined a pair of Derelicts in attacking an 0b10 outpost 2994 | -10/Mines | Discovered new exit (range 10) 2997 | -10/Mines | Learned location of Storage (-9) 3121 | -10/Mines | Received a Rocket Launcher from a helpful Derelict 3195 | -10/Mines | Discovered new exit (range 5) 3227 | -10/Mines | Core integrity fell below 20% 3407 | -10/Mines | Entered Materials 3407 | -9/Materials | Evolved 2 slots: Propulsion x1, Utility x1 3408 | -9/Materials | Identified exit to Materials 3422 | -9/Materials | Self-destructed Last Messages --------------- 03226_ Flight Unit destroyed. 03227_ Destroyed Lgt. Nuclear Core. 03227_ G-34 Mercenary destroyed. 03228_ Lgt. Ion Engine destroyed. 03229_ The unstable cave ceiling collapses. 03230_ Critical hit (Burn: +37). 03231_ The unstable cave ceiling collapses. 03233_ G-47 Trooper destroyed. 03237_ The unstable cave ceiling collapses. 03242_ System corrupted: Matter fused (-6). 03245_ The unstable cave ceiling collapses. 03316_ K-01 Serf collects debris. 03341_ R#4DPV7%DOKLANWWHTNIXB=KPUZ,H 03372_ Acquired 83 matter. PARAMETERS=PROPULSION+1,UTILITY+1 LOCATION=UNKNOWN GOAL=ESCAPE Loading 1 Materials exit... 03408_ T-07 Excavator is excavating. 03416_ Acquired 41 matter. Map ----- +----------------------------------------------------+ | | | | | | | | | | | | | | | | | | | | | | | | | | | | | | | ?????????????????????????????????????????????????? | | ?????????????????????????????????????????????????? | | ########?????????????????????????????????????????? | | #???##########????????????????????????????? | | ##### #????????????????????????????? | | # # """ #???#####????????????????????? | | # # """ #???# #????????????????????? | | "" """ # # """ ##### +????????????????????? | | "" """ + + + #????????????????????? | | "" """ # # =] ##### #????????????????????? | | # # ]] #???#@ #????????????????????? | | ######## # % ##### #????????????????????? | | ???????# # + #????????????????????? | | ???????# ############## #????????????????????? | | ???????# #????????????# #????????????????????? | | ??????? #????????????# #????????????????????? | | ??????## #????????????# #????????????????????? | | ???????# +????????????# #????????????????????? | | ???????# #????????????# #????????????????????? | | ???????# #????????????# #????????????????????? | | ???????# #????????????? #????????????????????? | | ???????# #????????????? ????????????????????? | | ???????# #????????????? ????????????????????? | | ???????? ?????????????? Y ????????????????????? | | ????????????????????????? ????????????????????? | | ????????????????????????? #???????????????????? | | ?????????????????????????#+#?????????????????????? | | ?????????????????????????????????????????????????? | | ?????????????????????????????????????????????????? | | ?????????????????????????????????????????????????? | | ?????????????????????????????????????????????????? | | ?????????????????????????????????????????????????? | | ?????????????????????????????????????????????????? | | ?????????????????????????????????????????????????? | | ?????????????????????????????????????????????????? | +----------------------------------------------------+ Best States ------------- Heat Dissipation 28 Energy Generation 10 Energy Capacity 250 Matter Stores 300 Matter Capacity 300 Sight Range 16 Robot Scan Range 14 Terrain Scan Density 10 Additional Mass Support 6 Resistance: KI 20 Resistance: TH 20 Resistance: EX 20 Resistance: EM 20 Resistance: I 20 Resistance: S 20 Resistance: P 20 Evasion (%) 62 Offensive Hacking 10 Item Schematics ----------------- None Robot Schematics ------------------ None Fabricated ------------ Nothing Alien Tech Used ----------------- None Achievements -------------- Quantum Hacking Challenges ------------ None Game ------ Seed ThrowingScanRifle Manual? 0 Play Time 00:36:46 Cumulative 74.0 hours Start 2024.08.10 @ 23:37:43 End 2024.08.11 @ 01:56:56 Sessions 1 Manual Loads 0 Difficulty Adventurer Special Mode None Game No. 29 Rogue 18 Adventurer 11 Explorer 0 Win Type - Total 0 Types 0/0/0/0/0/0/0/0/0 Lore% 18 Gallery% 33 Achievement% 29 Wizard Run 0 Options --------- Layout 1 ASCII 0 Keyboard 0 Movement Mouse Keybinds 0 Fullscreen 1 Font 24/Smallcaps Map View 50x35 Zoom Use 0% Tactical HUD 1 Map Filters NONE Filters NONE Steam 1 RUN: 6b81cd09-38b8-4a7b-964a-8ce932c9528c